[Event "Live Chess"]
[Site "Chess.com"]
[Date "2024.06.02"]
[Round "-"]
[White "Crowded_House"]
[Black "WelshTiger"]
[Result "0-1"]
[WhiteElo "1724"]
[BlackElo "2455"]
[TimeControl "300"]
[EndTime "17:47:11 PDT"]
[Termination "WelshTiger won by checkmate"]

1. d4 {[%clk 0:04:57.5]} 1... d5 {[%clk 0:04:55.1]} 2. Bg5 {[%clk 0:04:55.9]}
2... Nf6 {[%clk 0:04:50.3]} 3. e3 {[%clk 0:04:54.6]} 3... Ne4 {[%clk 0:04:47.4]}
4. Bh4 {[%clk 0:04:53.1]} 4... c5 {[%clk 0:04:46.7]} 5. dxc5 {[%clk 0:04:46.5]}
5... Qa5+ {[%clk 0:04:43]} 6. c3 {[%clk 0:04:45.3]} 6... Qxc5 {[%clk 0:04:40.9]}
7. Nd2 {[%clk 0:04:43.8]} 7... Nxd2 {[%clk 0:04:38.4]} 8. Qxd2 {[%clk
0:04:42.9]} 8... Nc6 {[%clk 0:04:38]} 9. Nf3 {[%clk 0:04:37.3]} 9... e5 {[%clk
0:04:30.2]} 10. Be2 {[%clk 0:04:29.8]} 10... Be6 {[%clk 0:04:28.8]} 11. O-O
{[%clk 0:04:27.9]} 11... f6 {[%clk 0:04:28]} 12. Rfd1 {[%clk 0:04:17.7]} 12...
Be7 {[%clk 0:04:26.9]} 13. Bg3 {[%clk 0:04:00.4]} 13... O-O {[%clk 0:04:23.8]}
14. Ne1 {[%clk 0:03:56.2]} 14... Rfd8 {[%clk 0:04:21.6]} 15. Nd3 {[%clk
0:03:55]} 15... Qb6 {[%clk 0:04:17.6]} 16. Qc2 {[%clk 0:03:48.6]} 16... Rac8
{[%clk 0:04:14.8]} 17. Qb3 {[%clk 0:03:44.3]} 17... Qxb3 {[%clk 0:04:03.2]} 18.
axb3 {[%clk 0:03:43]} 18... a6 {[%clk 0:04:03.1]} 19. b4 {[%clk 0:03:36]} 19...
Na7 {[%clk 0:03:54.6]} 20. h3 {[%clk 0:03:30]} 20... Kf7 {[%clk 0:03:46.7]} 21.
Ra5 {[%clk 0:03:20.6]} 21... Nb5 {[%clk 0:03:45.6]} 22. Raa1 {[%clk 0:03:12.1]}
22... Nd6 {[%clk 0:03:44.4]} 23. Nc5 {[%clk 0:03:09.2]} 23... Rc7 {[%clk
0:03:35.1]} 24. Nxe6 {[%clk 0:03:07.3]} 24... Kxe6 {[%clk 0:03:34.3]} 25. Rd2
{[%clk 0:02:54.6]} 25... Ne4 {[%clk 0:03:29]} 26. Rd3 {[%clk 0:02:41.7]} 26...
Nxg3 {[%clk 0:03:24.7]} 27. fxg3 {[%clk 0:02:40.5]} 27... f5 {[%clk 0:03:19.9]}
28. Ra5 {[%clk 0:02:32.5]} 28... e4 {[%clk 0:03:12.8]} 29. Rd4 {[%clk
0:02:22.7]} 29... Bf6 {[%clk 0:03:11.6]} 30. Rd2 {[%clk 0:02:21.1]} 30... Be5
{[%clk 0:03:10.8]} 31. g4 {[%clk 0:02:16.2]} 31... f4 {[%clk 0:03:08.4]} 32.
exf4 {[%clk 0:02:09.8]} 32... Bxf4 {[%clk 0:03:08.3]} 33. Rd1 {[%clk 0:02:08.4]}
33... Rf7 {[%clk 0:02:55.2]} 34. Rf1 {[%clk 0:02:04.8]} 34... Be3+ {[%clk
0:02:53.2]} 35. Kh1 {[%clk 0:02:01.3]} 35... Rxf1+ {[%clk 0:02:52.2]} 36. Bxf1
{[%clk 0:02:00.5]} 36... Rf8 {[%clk 0:02:51.6]} 37. Bxa6 {[%clk 0:01:44.3]}
37... bxa6 {[%clk 0:02:49.6]} 38. Rxa6+ {[%clk 0:01:44.2]} 38... Ke5 {[%clk
0:02:48.2]} 39. Ra7 {[%clk 0:01:36.8]} 39... Rf1+ {[%clk 0:02:41.4]} 40. Kh2
{[%clk 0:01:34.8]} 40... Bf4+ {[%clk 0:02:40.8]} 41. g3 {[%clk 0:01:32.8]} 41...
Rf2+ {[%clk 0:02:40]} 42. Kg1 {[%clk 0:01:28]} 42... Bxg3 {[%clk 0:02:39.9]} 43.
Rxg7 {[%clk 0:01:23.4]} 43... e3 {[%clk 0:02:39.2]} 44. Re7+ {[%clk 0:01:15.2]}
44... Kf4 {[%clk 0:02:37]} 45. Rf7+ {[%clk 0:01:12.9]} 45... Ke4 {[%clk
0:02:31]} 46. Rxf2 {[%clk 0:01:10.5]} 46... Bxf2+ {[%clk 0:02:30.4]} 47. Kf1
{[%clk 0:01:08]} 47... Kd3 {[%clk 0:02:29.9]} 48. b5 {[%clk 0:01:00.8]} 48...
Bg3 {[%clk 0:02:28.6]} 49. b6 {[%clk 0:00:56.1]} 49... e2+ {[%clk 0:02:26.6]}
50. Kg2 {[%clk 0:00:54.6]} 50... Bb8 {[%clk 0:02:24.1]} 51. Kf3 {[%clk
0:00:54.5]} 51... e1=Q {[%clk 0:02:22.4]} 52. b4 {[%clk 0:00:53.4]} 52... Qe3+
{[%clk 0:02:20.4]} 53. Kg2 {[%clk 0:00:51.9]} 53... Qg3+ {[%clk 0:02:19.6]} 54.
Kf1 {[%clk 0:00:49.5]} 54... Ke3 {[%clk 0:02:17.3]} 55. c4 {[%clk 0:00:46.1]}
55... dxc4 {[%clk 0:02:15]} 56. b5 {[%clk 0:00:43.7]} 56... c3 {[%clk
0:02:13.8]} 57. b7 {[%clk 0:00:43.6]} 57... c2 {[%clk 0:02:13]} 58. g5 {[%clk
0:00:43.2]} 58... c1=R# {[%clk 0:02:06]} 0-1

[Event "Live Chess"]
[Site "Chess.com"]
[Date "2024.06.02"]
[Round "-"]
[White "PaulyD81"]
[Black "Thebigsqueeze"]
[Result "0-1"]
[WhiteElo "980"]
[BlackElo "2272"]
[TimeControl "300"]
[EndTime "17:47:53 PDT"]
[Termination "Thebigsqueeze won by resignation"]

1. d4 {[%clk 0:04:55.3]} 1... Nf6 {[%clk 0:04:57.5]} 2. Bf4 {[%clk 0:04:53]}
2... d6 {[%clk 0:04:55.9]} 3. e3 {[%clk 0:04:50.2]} 3... Nc6 {[%clk 0:04:54]} 4.
Nf3 {[%clk 0:04:44.1]} 4... g6 {[%clk 0:04:52.6]} 5. Nbd2 {[%clk 0:04:42.3]}
5... Bg7 {[%clk 0:04:52.1]} 6. Bd3 {[%clk 0:04:33.9]} 6... O-O {[%clk
0:04:51.3]} 7. O-O {[%clk 0:04:30.1]} 7... Nh5 {[%clk 0:04:50.3]} 8. Bg3 {[%clk
0:04:24.2]} 8... Nxg3 {[%clk 0:04:48.4]} 9. hxg3 {[%clk 0:04:20.7]} 9... e6
{[%clk 0:04:47.1]} 10. c3 {[%clk 0:04:09.6]} 10... e5 {[%clk 0:04:46.2]} 11.
dxe5 {[%clk 0:04:03]} 11... dxe5 {[%clk 0:04:44.4]} 12. a3 {[%clk 0:03:39]}
12... Bg4 {[%clk 0:04:42.8]} 13. Qb3 {[%clk 0:03:25.5]} 13... Qxd3 {[%clk
0:04:40.5]} 14. Qxb7 {[%clk 0:03:03.8]} 14... Qd5 {[%clk 0:04:28]} 15. c4 {[%clk
0:02:38.7]} 15... Qd7 {[%clk 0:04:18.7]} 16. Ne4 {[%clk 0:02:04.9]} 16... Rfb8
{[%clk 0:03:16.7]} 17. Rad1 {[%clk 0:01:31.6]} 17... Qxd1 {[%clk 0:02:46.2]} 18.
Qxb8+ {[%clk 0:01:26.2]} 18... Rxb8 {[%clk 0:02:43.4]} 19. Rxd1 {[%clk
0:01:24.9]} 19... f5 {[%clk 0:02:36.6]} 20. Nc5 {[%clk 0:00:50.9]} 20... e4
{[%clk 0:02:35.3]} 0-1

[Event "Live Chess"]
[Site "Chess.com"]
[Date "2024.06.02"]
[Round "-"]
[White "Plato_77"]
[Black "StoreySniper"]
[Result "0-1"]
[WhiteElo "1301"]
[BlackElo "2525"]
[TimeControl "300"]
[EndTime "17:48:10 PDT"]
[Termination "StoreySniper won by resignation"]

1. d4 {[%clk 0:04:58.6]} 1... g6 {[%clk 0:04:59.1]} 2. Nf3 {[%clk 0:04:52.6]}
2... Bg7 {[%clk 0:04:58.4]} 3. Bf4 {[%clk 0:04:48.8]} 3... c5 {[%clk 0:04:57.2]}
4. e3 {[%clk 0:04:46.9]} 4... Qb6 {[%clk 0:04:54.9]} 5. b3 {[%clk 0:04:43.7]}
5... Nf6 {[%clk 0:04:43.7]} 6. Nbd2 {[%clk 0:04:40.4]} 6... Nd5 {[%clk
0:04:41.9]} 7. dxc5 {[%clk 0:04:36.4]} 7... Qxc5 {[%clk 0:04:32.9]} 8. Ne4
{[%clk 0:04:26.6]} 8... Qb4+ {[%clk 0:04:28.9]} 9. c3 {[%clk 0:03:59.2]} 9...
Qxe4 {[%clk 0:04:26.1]} 10. Bd3 {[%clk 0:03:30]} 10... Bxc3+ {[%clk 0:04:21.4]}
11. Ke2 {[%clk 0:03:26.6]} 11... Nxf4+ {[%clk 0:04:20.1]} 12. Kf1 {[%clk
0:03:19.1]} 12... Nxd3 {[%clk 0:04:17.1]} 0-1

[Event "Live Chess"]
[Site "Chess.com"]
[Date "2024.06.02"]
[Round "-"]
[White "PughmanChess"]
[Black "gobbles19"]
[Result "0-1"]
[WhiteElo "1384"]
[BlackElo "2259"]
[TimeControl "300"]
[EndTime "17:48:25 PDT"]
[Termination "gobbles19 won by resignation"]

1. e4 {[%clk 0:04:57.1]} 1... Nf6 {[%clk 0:04:56.4]} 2. e5 {[%clk 0:04:56]} 2...
Nd5 {[%clk 0:04:55.9]} 3. Nf3 {[%clk 0:04:55.9]} 3... d6 {[%clk 0:04:54.8]} 4.
exd6 {[%clk 0:04:53.9]} 4... cxd6 {[%clk 0:04:54.7]} 5. d4 {[%clk 0:04:53.3]}
5... g6 {[%clk 0:04:54.2]} 6. Bc4 {[%clk 0:04:50.3]} 6... Nb6 {[%clk 0:04:51.8]}
7. Bb3 {[%clk 0:04:49.5]} 7... Bg7 {[%clk 0:04:51.4]} 8. c3 {[%clk 0:04:48.5]}
8... O-O {[%clk 0:04:50.2]} 9. O-O {[%clk 0:04:45.8]} 9... a5 {[%clk 0:04:49.5]}
10. a3 {[%clk 0:04:44.2]} 10... a4 {[%clk 0:04:47.5]} 11. Ba2 {[%clk 0:04:43.3]}
11... Nc6 {[%clk 0:04:46.5]} 12. Nbd2 {[%clk 0:04:40.1]} 12... e5 {[%clk
0:04:40.8]} 13. d5 {[%clk 0:04:37.4]} 13... Ne7 {[%clk 0:04:38.1]} 14. Ne4
{[%clk 0:04:35.3]} 14... Bg4 {[%clk 0:04:31.7]} 15. c4 {[%clk 0:04:28.5]} 15...
Nf5 {[%clk 0:04:22.8]} 16. h3 {[%clk 0:04:26.1]} 16... Bxf3 {[%clk 0:04:21.5]}
17. Qxf3 {[%clk 0:04:24]} 17... Nd4 {[%clk 0:04:21.2]} 18. Qg3 {[%clk
0:04:14.4]} 18... Ne2+ {[%clk 0:04:20]} 19. Kh2 {[%clk 0:04:12]} 19... Nxg3
{[%clk 0:04:19.1]} 20. Nxg3 {[%clk 0:04:11.4]} 20... Rc8 {[%clk 0:04:16.7]} 0-1

[Event "Live Chess"]
[Site "Chess.com"]
[Date "2024.06.02"]
[Round "-"]
[White "lyricalschemes"]
[Black "Tushinskiy"]
[Result "0-1"]
[WhiteElo "2279"]
[BlackElo "2243"]
[TimeControl "300"]
[EndTime "17:48:56 PDT"]
[Termination "Tushinskiy won by resignation"]

1. e4 {[%clk 0:04:59.2]} 1... e5 {[%clk 0:04:44.3]} 2. Nc3 {[%clk 0:04:57.7]}
2... d6 {[%clk 0:04:43.8]} 3. d4 {[%clk 0:04:56.9]} 3... Nc6 {[%clk 0:04:35.5]}
4. dxe5 {[%clk 0:04:54.9]} 4... dxe5 {[%clk 0:04:35.4]} 5. Qxd8+ {[%clk
0:04:53.7]} 5... Nxd8 {[%clk 0:04:34.6]} 6. Nf3 {[%clk 0:04:48.9]} 6... Bd6
{[%clk 0:04:32.9]} 7. Nb5 {[%clk 0:04:44.3]} 7... Nf6 {[%clk 0:04:29.8]} 8.
Nxd6+ {[%clk 0:04:42.2]} 8... cxd6 {[%clk 0:04:29.7]} 9. Bd3 {[%clk 0:04:40.9]}
9... Bg4 {[%clk 0:04:28.2]} 10. Nd2 {[%clk 0:04:39]} 10... Ne6 {[%clk
0:04:26.3]} 11. f3 {[%clk 0:04:38.3]} 11... Bh5 {[%clk 0:04:25.2]} 12. Nb3
{[%clk 0:04:37.9]} 12... O-O-O {[%clk 0:04:22.2]} 13. Be3 {[%clk 0:04:36.4]}
13... Kb8 {[%clk 0:04:21.5]} 14. O-O-O {[%clk 0:04:34.6]} 14... Bg6 {[%clk
0:04:19.9]} 15. h4 {[%clk 0:04:32.3]} 15... h5 {[%clk 0:04:18.4]} 16. g3 {[%clk
0:04:26.9]} 16... Rd7 {[%clk 0:04:15.6]} 17. Bc4 {[%clk 0:04:25.6]} 17... Nc7
{[%clk 0:04:10.3]} 18. Kb1 {[%clk 0:04:23]} 18... Rc8 {[%clk 0:04:07.8]} 19. c3
{[%clk 0:04:20.1]} 19... d5 {[%clk 0:04:06]} 20. Nc5 {[%clk 0:04:06.8]} 20...
Rdd8 {[%clk 0:04:02.2]} 21. Bd3 {[%clk 0:04:00.2]} 21... b6 {[%clk 0:03:55.6]}
22. Na6+ {[%clk 0:03:46.8]} 22... Nxa6 {[%clk 0:03:51.6]} 23. Bxa6 {[%clk
0:03:46.7]} 23... dxe4 {[%clk 0:03:48.7]} 24. Bxc8 {[%clk 0:03:44.2]} 24...
exf3+ {[%clk 0:03:47.4]} 25. Kc1 {[%clk 0:03:40.6]} 25... Rxd1+ {[%clk
0:03:43.2]} 26. Kxd1 {[%clk 0:03:37.3]} 26... Kxc8 {[%clk 0:03:43.1]} 27. Rf1
{[%clk 0:03:33]} 27... e4 {[%clk 0:03:40.1]} 28. Kd2 {[%clk 0:03:30.9]} 28...
Ng4 {[%clk 0:03:38.2]} 29. Bf4 {[%clk 0:03:27.4]} 29... f6 {[%clk 0:03:37.4]}
30. b4 {[%clk 0:03:23.8]} 30... Bf7 {[%clk 0:03:35.4]} 31. a4 {[%clk 0:03:22.4]}
31... Bc4 {[%clk 0:03:33.7]} 0-1

[Event "Live Chess"]
[Site "Chess.com"]
[Date "2024.06.02"]
[Round "-"]
[White "NeilDruggan73"]
[Black "mychess51"]
[Result "1-0"]
[WhiteElo "1771"]
[BlackElo "1678"]
[TimeControl "300"]
[EndTime "17:49:09 PDT"]
[Termination "NeilDruggan73 won by resignation"]

1. d4 {[%clk 0:04:56.4]} 1... e6 {[%clk 0:04:59.9]} 2. Nf3 {[%clk 0:04:52.3]}
2... d5 {[%clk 0:04:59.8]} 3. Bg5 {[%clk 0:04:50.8]} 3... Nf6 {[%clk 0:04:59.7]}
4. Bxf6 {[%clk 0:04:49.5]} 4... Be7 {[%clk 0:04:59.6]} 5. Bxe7 {[%clk
0:04:47.5]} 5... Qxe7 {[%clk 0:04:55.1]} 6. e3 {[%clk 0:04:46.4]} 6... O-O
{[%clk 0:04:53.3]} 7. Nbd2 {[%clk 0:04:45.2]} 7... c5 {[%clk 0:04:52.2]} 8. dxc5
{[%clk 0:04:42.7]} 8... Qxc5 {[%clk 0:04:50.7]} 9. Nb3 {[%clk 0:04:34.5]} 9...
Qc7 {[%clk 0:04:49.2]} 10. Be2 {[%clk 0:04:30.8]} 10... Nc6 {[%clk 0:04:49.1]}
11. O-O {[%clk 0:04:28.7]} 11... Bd7 {[%clk 0:04:49]} 12. c3 {[%clk 0:04:26]}
12... b6 {[%clk 0:04:48.9]} 13. Bb5 {[%clk 0:04:22.5]} 13... Rac8 {[%clk
0:04:48.8]} 14. Nbd4 {[%clk 0:04:21.2]} 14... Nxd4 {[%clk 0:04:45.6]} 15. Nxd4
{[%clk 0:04:20]} 15... Bxb5 {[%clk 0:04:43.2]} 16. Nxb5 {[%clk 0:04:18.8]} 16...
Qb7 {[%clk 0:04:43.1]} 17. a4 {[%clk 0:04:15]} 17... a6 {[%clk 0:04:43]} 18. Nd4
{[%clk 0:04:13.6]} 18... e5 {[%clk 0:04:38.7]} 19. Nf3 {[%clk 0:04:09.1]} 19...
Qe7 {[%clk 0:04:36.2]} 20. Qb3 {[%clk 0:04:05.4]} 20... Qe6 {[%clk 0:04:27.4]}
21. e4 {[%clk 0:03:59.3]} 21... Rc4 {[%clk 0:04:10.5]} 22. exd5 {[%clk
0:03:52.1]} 22... Qxd5 {[%clk 0:04:09.2]} 23. Rad1 {[%clk 0:03:51.2]} 23... Qc6
{[%clk 0:04:07.8]} 24. Nxe5 {[%clk 0:03:47.6]} 1-0

[Event "Live Chess"]
[Site "Chess.com"]
[Date "2024.06.02"]
[Round "-"]
[White "MagnersCarlsberg2870"]
[Black "Crowded_House"]
[Result "1-0"]
[WhiteElo "1754"]
[BlackElo "1717"]
[TimeControl "300"]
[EndTime "17:49:59 PDT"]
[Termination "MagnersCarlsberg2870 won by checkmate"]

1. d4 {[%clk 0:04:57.2]} 1... e6 {[%clk 0:04:57.9]} 2. Nf3 {[%clk 0:04:55.4]}
2... d5 {[%clk 0:04:57.4]} 3. e3 {[%clk 0:04:54.4]} 3... c5 {[%clk 0:04:56.3]}
4. c3 {[%clk 0:04:53.4]} 4... Nc6 {[%clk 0:04:53.7]} 5. Bd3 {[%clk 0:04:52.5]}
5... Qb6 {[%clk 0:04:52.6]} 6. Nbd2 {[%clk 0:04:51.1]} 6... Bd7 {[%clk
0:04:41.8]} 7. Qe2 {[%clk 0:04:49.9]} 7... Nge7 {[%clk 0:04:39.1]} 8. O-O {[%clk
0:04:48.7]} 8... Ng6 {[%clk 0:04:37.8]} 9. g3 {[%clk 0:04:39.2]} 9... Bd6 {[%clk
0:04:34]} 10. e4 {[%clk 0:04:37.6]} 10... O-O {[%clk 0:04:21.7]} 11. e5 {[%clk
0:04:35.7]} 11... Be7 {[%clk 0:04:19.2]} 12. h4 {[%clk 0:04:28.5]} 12... cxd4
{[%clk 0:04:08.3]} 13. h5 {[%clk 0:04:24.8]} 13... Nh8 {[%clk 0:04:07]} 14. Nb3
{[%clk 0:04:15.5]} 14... dxc3 {[%clk 0:03:55.3]} 15. bxc3 {[%clk 0:04:11.8]}
15... Na5 {[%clk 0:03:42.8]} 16. Bg5 {[%clk 0:04:02.4]} 16... Bxg5 {[%clk
0:03:29.9]} 17. Nxg5 {[%clk 0:04:00.7]} 17... h6 {[%clk 0:03:26]} 18. Bh7#
{[%clk 0:03:59]} 1-0

[Event "Live Chess"]
[Site "Chess.com"]
[Date "2024.06.02"]
[Round "-"]
[White "educatedlad"]
[Black "CarmelJane"]
[Result "0-1"]
[WhiteElo "1736"]
[BlackElo "2067"]
[TimeControl "300"]
[EndTime "17:50:09 PDT"]
[Termination "CarmelJane won by checkmate"]

1. d4 {[%clk 0:04:59.3]} 1... Nf6 {[%clk 0:04:57.8]} 2. Bg5 {[%clk 0:04:57.5]}
2... e6 {[%clk 0:04:56.4]} 3. e4 {[%clk 0:04:55.9]} 3... h6 {[%clk 0:04:54.8]}
4. Bxf6 {[%clk 0:04:54.7]} 4... Qxf6 {[%clk 0:04:54.7]} 5. Nc3 {[%clk
0:04:53.4]} 5... d6 {[%clk 0:04:54]} 6. Qd2 {[%clk 0:04:52.1]} 6... b6 {[%clk
0:04:52.3]} 7. O-O-O {[%clk 0:04:49.4]} 7... Bb7 {[%clk 0:04:51]} 8. e5 {[%clk
0:04:47.5]} 8... Qd8 {[%clk 0:04:47.9]} 9. Bb5+ {[%clk 0:04:43.6]} 9... Nd7
{[%clk 0:04:45.5]} 10. Nf3 {[%clk 0:04:39.5]} 10... a6 {[%clk 0:04:43.7]} 11.
Bxd7+ {[%clk 0:04:37.2]} 11... Qxd7 {[%clk 0:04:42.3]} 12. exd6 {[%clk
0:04:37.1]} 12... cxd6 {[%clk 0:04:40.7]} 13. Rhe1 {[%clk 0:04:34.7]} 13... Be7
{[%clk 0:04:39.1]} 14. d5 {[%clk 0:04:34.1]} 14... e5 {[%clk 0:04:38.1]} 15. Qe3
{[%clk 0:04:23.3]} 15... O-O {[%clk 0:04:34.8]} 16. Qxb6 {[%clk 0:04:18.9]}
16... Rfb8 {[%clk 0:04:32.2]} 17. Qe3 {[%clk 0:04:17.5]} 17... a5 {[%clk
0:04:29.8]} 18. Nd2 {[%clk 0:04:07.9]} 18... Bg5 {[%clk 0:04:26.6]} 19. Qg3
{[%clk 0:04:05.3]} 19... a4 {[%clk 0:04:25]} 20. Kb1 {[%clk 0:04:03.3]} 20... a3
{[%clk 0:04:23.5]} 21. Nb3 {[%clk 0:03:58.6]} 21... axb2 {[%clk 0:04:20.9]} 22.
Kxb2 {[%clk 0:03:56.6]} 22... Ba6 {[%clk 0:04:05.9]} 23. Ne4 {[%clk 0:03:54.7]}
23... Qa4 {[%clk 0:03:48.1]} 24. h4 {[%clk 0:03:48.2]} 24... Bf4 {[%clk
0:03:41.9]} 25. Qg4 {[%clk 0:03:38.2]} 25... Bc4 {[%clk 0:03:36.8]} 26. Nc3
{[%clk 0:03:35]} 26... Qa3+ {[%clk 0:03:34.4]} 27. Kb1 {[%clk 0:03:31.9]} 27...
Bxb3 {[%clk 0:03:33.2]} 28. cxb3 {[%clk 0:03:29.3]} 28... Rxb3+ {[%clk
0:03:31.1]} 29. axb3 {[%clk 0:03:29]} 29... Qxb3# {[%clk 0:03:30.5]} 0-1

[Event "Live Chess"]
[Site "Chess.com"]
[Date "2024.06.02"]
[Round "-"]
[White "Dhaydon19"]
[Black "LanceMaster23"]
[Result "1-0"]
[WhiteElo "2680"]
[BlackElo "1854"]
[TimeControl "300"]
[EndTime "17:50:51 PDT"]
[Termination "Dhaydon19 won by resignation"]

1. d4 {[%clk 0:04:58.2]} 1... Nf6 {[%clk 0:04:48.5]} 2. Nf3 {[%clk 0:04:56.1]}
2... d5 {[%clk 0:04:24.8]} 3. c4 {[%clk 0:04:53.2]} 3... c6 {[%clk 0:04:23]} 4.
e3 {[%clk 0:04:47.3]} 4... Bf5 {[%clk 0:03:57.1]} 5. Bd3 {[%clk 0:04:44.6]} 5...
Bg6 {[%clk 0:03:41.6]} 6. Nc3 {[%clk 0:04:41]} 6... e6 {[%clk 0:03:40.4]} 7. Qe2
{[%clk 0:04:34.7]} 7... Be7 {[%clk 0:03:24.3]} 8. O-O {[%clk 0:04:31.8]} 8...
Nbd7 {[%clk 0:03:17.5]} 9. Bd2 {[%clk 0:04:28]} 9... O-O {[%clk 0:03:04.9]} 10.
Rad1 {[%clk 0:04:25.1]} 10... Re8 {[%clk 0:03:03.3]} 11. Rfe1 {[%clk 0:04:15.9]}
11... Qc7 {[%clk 0:02:34.3]} 12. Rc1 {[%clk 0:04:06.7]} 12... a6 {[%clk
0:02:30.3]} 13. b3 {[%clk 0:04:04.1]} 13... dxc4 {[%clk 0:02:24.1]} 14. bxc4
{[%clk 0:04:01.2]} 14... Rad8 {[%clk 0:02:17.1]} 15. Bxg6 {[%clk 0:03:58.2]}
15... hxg6 {[%clk 0:02:15.9]} 16. Na4 {[%clk 0:03:52.3]} 16... e5 {[%clk
0:02:04.2]} 17. d5 {[%clk 0:03:46.6]} 17... Nc5 {[%clk 0:02:02.2]} 18. Nxc5
{[%clk 0:03:44]} 18... Bxc5 {[%clk 0:02:01.4]} 19. e4 {[%clk 0:03:43.7]} 19...
Ng4 {[%clk 0:01:49]} 20. Rf1 {[%clk 0:03:40.5]} 20... Qe7 {[%clk 0:01:31]} 21.
h3 {[%clk 0:03:33.7]} 21... Nxf2 {[%clk 0:01:21.6]} 22. Rxf2 {[%clk 0:03:31.7]}
22... Bxf2+ {[%clk 0:01:21.5]} 23. Qxf2 {[%clk 0:03:31.3]} 23... f6 {[%clk
0:01:14.6]} 24. Nh4 {[%clk 0:03:29.6]} 24... Qf7 {[%clk 0:01:06.2]} 25. Qg3
{[%clk 0:03:23.8]} 25... g5 {[%clk 0:01:03.6]} 26. Nf5 {[%clk 0:03:21.3]} 26...
Qd7 {[%clk 0:00:55.7]} 27. h4 {[%clk 0:03:18.8]} 27... g6 {[%clk 0:00:47.9]} 28.
Nh6+ {[%clk 0:03:16.9]} 28... Kg7 {[%clk 0:00:40.3]} 29. hxg5 {[%clk 0:03:16.4]}
29... f5 {[%clk 0:00:38]} 30. exf5 {[%clk 0:03:13.8]} 30... gxf5 {[%clk
0:00:37.9]} 31. Bc3 {[%clk 0:03:12.1]} 31... Qd6 {[%clk 0:00:33.8]} 32. Nxf5+
{[%clk 0:03:10.3]} 1-0

[Event "Live Chess"]
[Site "Chess.com"]
[Date "2024.06.02"]
[Round "-"]
[White "ShanthamGrarks"]
[Black "TheSmoulderingMaster"]
[Result "1-0"]
[WhiteElo "1866"]
[BlackElo "1763"]
[TimeControl "300"]
[EndTime "17:51:01 PDT"]
[Termination "ShanthamGrarks won by resignation"]

1. d4 {[%clk 0:04:56.7]} 1... Nf6 {[%clk 0:04:58.7]} 2. Nc3 {[%clk 0:04:56.3]}
2... d6 {[%clk 0:04:58.2]} 3. e4 {[%clk 0:04:55.2]} 3... g6 {[%clk 0:04:57.1]}
4. Bg5 {[%clk 0:04:54.4]} 4... Bg7 {[%clk 0:04:56.2]} 5. Nf3 {[%clk 0:04:53.7]}
5... O-O {[%clk 0:04:55.4]} 6. h4 {[%clk 0:04:53.3]} 6... c6 {[%clk 0:04:54.5]}
7. Be2 {[%clk 0:04:52.3]} 7... Qa5 {[%clk 0:04:53.2]} 8. Qd2 {[%clk 0:04:48.1]}
8... Nbd7 {[%clk 0:04:50.5]} 9. h5 {[%clk 0:04:47.2]} 9... e5 {[%clk 0:04:47.4]}
10. hxg6 {[%clk 0:04:44.8]} 10... fxg6 {[%clk 0:04:46.3]} 11. O-O-O {[%clk
0:04:38.2]} 11... exd4 {[%clk 0:04:37.3]} 12. Nxd4 {[%clk 0:04:36.5]} 12... Ne5
{[%clk 0:04:34.5]} 13. Nb3 {[%clk 0:04:30.3]} 13... Qc7 {[%clk 0:04:31.1]} 14.
f4 {[%clk 0:04:25.1]} 14... Neg4 {[%clk 0:04:28]} 15. Bc4+ {[%clk 0:04:19.2]}
15... d5 {[%clk 0:04:25.7]} 16. exd5 {[%clk 0:04:17.6]} 16... cxd5 {[%clk
0:04:24.9]} 17. Bxf6 {[%clk 0:04:01.7]} 17... Nxf6 {[%clk 0:04:21.9]} 18. Nxd5
{[%clk 0:03:40.4]} 18... Nxd5 {[%clk 0:04:20.4]} 19. Bxd5+ {[%clk 0:03:35]}
19... Kh8 {[%clk 0:04:18.9]} 20. f5 {[%clk 0:03:15.8]} 20... Rxf5 {[%clk
0:04:14.3]} 21. g4 {[%clk 0:02:54.3]} 21... Qe5 {[%clk 0:04:03.4]} 22. c4 {[%clk
0:02:43.8]} 22... Rf4 {[%clk 0:03:31.5]} 23. Rde1 {[%clk 0:02:34.3]} 23... Qg5
{[%clk 0:03:26.3]} 24. Re8+ {[%clk 0:02:30.8]} 24... Bf8 {[%clk 0:03:22.8]} 25.
Rxf8+ {[%clk 0:02:24.5]} 1-0